[Event "Titled Tuesday Blitz May 9 Late 2023"]
[White "Hirneise, Jens"]
[Black "Cooklev, Steven"]
[WhiteFideId "24614734"]
[BlackFideId "2050552"]
[WhiteElo "2345"]
[BlackElo "2274"]
[Result "1-0"]
[Round "03"]
[TimeControl "180+2"]
[Date "2023.05.09"]
[WhiteClock "0:00:15"]
[BlackClock "0:00:00"]

1. Nf3 {[%clk 0:03:00]}  Nf6 {[%clk 0:02:59]} 2. e3 {[%clk 0:03:01]}  d5 {[%clk 0:02:59]} 3. c4 {[%clk 0:03:01]}  e6 {[%clk 0:02:58]} 4. Nc3 {[%clk 0:03:01]}  c5 {[%clk 0:02:59]} 5. d4 {[%clk 0:02:57]}  Nc6 {[%clk 0:02:59]} 6. a3 {[%clk 0:02:55]}  a6 {[%clk 0:02:48]} 7. cxd5 {[%clk 0:02:45]}  exd5 {[%clk 0:02:49]} 8. Be2 {[%clk 0:02:43]}  cxd4 {[%clk 0:02:46]} 9. Nxd4 {[%clk 0:02:42]}  Bd6 {[%clk 0:02:46]} 10. g4 {[%clk 0:02:32]}  O-O {[%clk 0:02:42]} 11. g5 {[%clk 0:02:32]}  Ne4 {[%clk 0:02:42]} 12. Nxe4 {[%clk 0:02:15]}  dxe4 {[%clk 0:02:43]} 13. Nxc6 {[%clk 0:02:14]}  bxc6 {[%clk 0:02:41]} 14. h4 {[%clk 0:02:14]}  Qe7 {[%clk 0:02:02]} 15. Qc2 {[%clk 0:02:06]}  Rb8 {[%clk 0:01:55]} 16. Bd2 {[%clk 0:02:04]}  Be6 {[%clk 0:01:46]} 17. Bc3 {[%clk 0:02:00]}  Bb3 {[%clk 0:01:44]} 18. Qb1 {[%clk 0:01:51]}  Be5 {[%clk 0:01:42]} 19. Qc1 {[%clk 0:01:44]}  Rfd8 {[%clk 0:01:33]} 20. Bxe5 {[%clk 0:01:32]}  Qxe5 {[%clk 0:01:34]} 21. Qc3 {[%clk 0:01:24]}  Qe6 {[%clk 0:01:14]} 22. Rc1 {[%clk 0:01:14]}  Rd6 {[%clk 0:01:11]} 23. h5 {[%clk 0:01:04]}  Rbd8 {[%clk 0:01:06]} 24. h6 {[%clk 0:01:02]}  f6 {[%clk 0:00:31]} 25. gxf6 {[%clk 0:00:55]}  Qxf6 {[%clk 0:00:30]} 26. Qxb3+ {[%clk 0:00:55]}  Kh8 {[%clk 0:00:22]} 27. hxg7+ {[%clk 0:00:55]}  Qxg7 {[%clk 0:00:22]} 28. Qc3 {[%clk 0:00:52]}  Rf6 {[%clk 0:00:17]} 29. Rd1 {[%clk 0:00:45]}  Rdf8 {[%clk 0:00:17]} 30. Qe5 {[%clk 0:00:38]}  h6 {[%clk 0:00:14]} 31. Qg3 {[%clk 0:00:26]}  Qf7 {[%clk 0:00:05]} 32. Rd6 {[%clk 0:00:21]}  Rxd6 {[%clk 0:00:02]} 33. Qxd6 {[%clk 0:00:22]}  Qxf2+ {[%clk 0:00:03]} 34. Kd1 {[%clk 0:00:15]}  Rf6 {[%clk 0:00:01]} 35. Rxh6+ {[%clk 0:00:15]}  Kg7 {[%clk 0:00:01]} 36. Qxf6+ {[%clk 0:00:14]}  Qxf6 {[%clk 0:00:01]} 37. Rxf6 {[%clk 0:00:15]}  Kxf6 {[%clk 0:00:00]} 38. Bxa6 {[%clk 0:00:15]} 1-0


[Site "https://www.chess.com"]

[Event "Titled Tuesday Blitz May 9 Late 2023"]
[White "ritanovikova"]
[Black "Qiao, Cindy"]
[BlackFideId "2620243"]
[WhiteElo "2195"]
[BlackElo "1777"]
[Result "0-1"]
[Round "03"]
[TimeControl "180+2"]
[Date "2023.05.09"]
[WhiteClock "0:01:12"]
[BlackClock "0:01:01"]

1. e4 {[%clk 0:03:00]}  c5 {[%clk 0:02:59]} 2. Nc3 {[%clk 0:03:00]}  Nc6 {[%clk 0:02:59]} 3. d3 {[%clk 0:03:00]}  g6 {[%clk 0:03:00]} 4. Be3 {[%clk 0:03:01]}  d6 {[%clk 0:03:00]} 5. Qd2 {[%clk 0:03:01]}  Bg7 {[%clk 0:03:00]} 6. g3 {[%clk 0:03:01]}  Nf6 {[%clk 0:03:00]} 7. Bh6 {[%clk 0:03:01]}  O-O {[%clk 0:03:00]} 8. h4 {[%clk 0:03:01]}  Nd4 {[%clk 0:02:53]} 9. O-O-O {[%clk 0:03:00]}  b5 {[%clk 0:02:52]} 10. h5 {[%clk 0:02:59]}  b4 {[%clk 0:02:28]} 11. Bxg7 {[%clk 0:02:58]}  Kxg7 {[%clk 0:02:27]} 12. Nd5 {[%clk 0:02:57]}  Rh8 {[%clk 0:02:16]} 13. Nxf6 {[%clk 0:02:54]}  exf6 {[%clk 0:02:15]} 14. h6+ {[%clk 0:02:51]}  Kf8 {[%clk 0:02:13]} 15. Bg2 {[%clk 0:02:48]}  Rb8 {[%clk 0:02:12]} 16. Ne2 {[%clk 0:02:48]}  Nxe2+ {[%clk 0:02:09]} 17. Qxe2 {[%clk 0:02:48]}  Be6 {[%clk 0:02:08]} 18. Kd2 {[%clk 0:02:37]}  Qa5 {[%clk 0:02:06]} 19. b3 {[%clk 0:02:25]}  Ke7 {[%clk 0:01:58]} 20. f4 {[%clk 0:02:22]}  Rhc8 {[%clk 0:01:46]} 21. f5 {[%clk 0:02:22]}  Bd7 {[%clk 0:01:46]} 22. fxg6 {[%clk 0:02:20]}  fxg6 {[%clk 0:01:47]} 23. g4 {[%clk 0:02:12]}  c4 {[%clk 0:01:36]} 24. bxc4 {[%clk 0:02:09]}  b3+ {[%clk 0:01:35]} 25. Ke3 {[%clk 0:02:10]}  Qg5+ {[%clk 0:01:30]} 26. Kf2 {[%clk 0:02:08]}  b2 {[%clk 0:01:23]} 27. Rb1 {[%clk 0:02:02]}  Bxg4 {[%clk 0:01:20]} 28. Bf3 {[%clk 0:02:02]}  Qf4 {[%clk 0:01:14]} 29. Qe3 {[%clk 0:01:58]}  Qxe3+ {[%clk 0:01:09]} 30. Kxe3 {[%clk 0:01:58]}  Bxf3 {[%clk 0:01:09]} 31. Kxf3 {[%clk 0:01:59]}  Rc5 {[%clk 0:01:06]} 32. Ke3 {[%clk 0:01:42]}  Ra5 {[%clk 0:01:06]} 33. Kd4 {[%clk 0:01:39]}  Rxa2 {[%clk 0:01:05]} 34. Kc3 {[%clk 0:01:39]}  Ra3+ {[%clk 0:01:05]} 35. Kd4 {[%clk 0:01:37]}  a5 {[%clk 0:01:04]} 36. c3 {[%clk 0:01:31]}  a4 {[%clk 0:01:02]} 37. Rh2 {[%clk 0:01:22]}  Rab3 {[%clk 0:01:02]} 38. c5 {[%clk 0:01:22]}  dxc5+ {[%clk 0:01:01]} 39. Kc4 {[%clk 0:01:19]}  a3 {[%clk 0:01:02]} 40. d4 {[%clk 0:01:16]}  cxd4 {[%clk 0:01:02]} 41. cxd4 {[%clk 0:01:12]}  a2 {[%clk 0:01:01]} 0-1


[Site "https://www.chess.com"]

[Event "Titled Tuesday Blitz May 9 Late 2023"]
[White "Almedina Ortiz, Edgardo J."]
[Black "Figorito, Nick"]
[WhiteFideId "3100197"]
[BlackFideId "30923689"]
[WhiteElo "2217"]
[BlackElo "2370"]
[Result "1-0"]
[Round "03"]
[TimeControl "180+2"]
[Date "2023.05.09"]
[WhiteClock "0:00:14"]
[BlackClock "0:00:16"]

1. d4 {[%clk 0:03:00]}  Nf6 {[%clk 0:02:59]} 2. c4 {[%clk 0:02:59]}  g6 {[%clk 0:03:00]} 3. Nc3 {[%clk 0:02:59]}  d5 {[%clk 0:03:00]} 4. Nf3 {[%clk 0:02:59]}  Bg7 {[%clk 0:03:01]} 5. Qb3 {[%clk 0:02:59]}  dxc4 {[%clk 0:03:01]} 6. Qxc4 {[%clk 0:03:00]}  O-O {[%clk 0:03:01]} 7. e4 {[%clk 0:03:00]}  a6 {[%clk 0:03:01]} 8. Be3 {[%clk 0:02:49]}  b5 {[%clk 0:03:01]} 9. Qb3 {[%clk 0:02:48]}  Bb7 {[%clk 0:02:34]} 10. d5 {[%clk 0:02:48]}  c6 {[%clk 0:02:30]} 11. Rd1 {[%clk 0:02:41]}  cxd5 {[%clk 0:02:30]} 12. exd5 {[%clk 0:02:41]}  Nbd7 {[%clk 0:02:12]} 13. a4 {[%clk 0:02:25]}  Ng4 {[%clk 0:02:08]} 14. Bd4 {[%clk 0:02:24]}  Bxd4 {[%clk 0:02:02]} 15. Rxd4 {[%clk 0:02:22]}  Ngf6 {[%clk 0:01:42]} 16. axb5 {[%clk 0:02:09]}  axb5 {[%clk 0:01:41]} 17. Bxb5 {[%clk 0:02:08]}  Ra1+ {[%clk 0:01:37]} 18. Rd1 {[%clk 0:02:08]}  Nc5 {[%clk 0:01:35]} 19. Qc4 {[%clk 0:01:49]}  Rxd1+ {[%clk 0:01:33]} 20. Nxd1 {[%clk 0:01:48]}  Nce4 {[%clk 0:01:18]} 21. Bc6 {[%clk 0:01:43]}  Qa5+ {[%clk 0:01:10]} 22. b4 {[%clk 0:01:36]}  Qc7 {[%clk 0:01:09]} 23. O-O {[%clk 0:01:33]}  Rc8 {[%clk 0:00:57]} 24. b5 {[%clk 0:01:32]}  Nd6 {[%clk 0:00:54]} 25. Qh4 {[%clk 0:01:06]}  Qb6 {[%clk 0:00:49]} 26. Nc3 {[%clk 0:00:43]}  Qc5 {[%clk 0:00:48]} 27. Qd4 {[%clk 0:00:42]}  Qxd4 {[%clk 0:00:42]} 28. Nxd4 {[%clk 0:00:43]}  Ra8 {[%clk 0:00:39]} 29. h3 {[%clk 0:00:36]}  Kf8 {[%clk 0:00:38]} 30. Rc1 {[%clk 0:00:27]}  Rb8 {[%clk 0:00:30]} 31. Na4 {[%clk 0:00:25]}  Nfe4 {[%clk 0:00:27]} 32. f3 {[%clk 0:00:23]}  Nd2 {[%clk 0:00:26]} 33. Nc5 {[%clk 0:00:21]}  Bc8 {[%clk 0:00:23]} 34. Rc2 {[%clk 0:00:19]}  N2c4 {[%clk 0:00:22]} 35. Kf2 {[%clk 0:00:16]}  Na3 {[%clk 0:00:21]} 36. Rc1 {[%clk 0:00:15]}  Kg7 {[%clk 0:00:18]} 37. Ra1 {[%clk 0:00:15]}  Naxb5 {[%clk 0:00:18]} 38. Bxb5 {[%clk 0:00:13]}  Nxb5 {[%clk 0:00:18]} 39. Rb1 {[%clk 0:00:13]}  Bd7 {[%clk 0:00:09]} 40. Nxd7 {[%clk 0:00:13]}  Rd8 {[%clk 0:00:10]} 41. Rxb5 {[%clk 0:00:12]}  Rxd7 {[%clk 0:00:10]} 42. Nc6 {[%clk 0:00:12]}  h5 {[%clk 0:00:06]} 43. Ne5 {[%clk 0:00:12]}  Rd6 {[%clk 0:00:06]} 44. f4 {[%clk 0:00:12]}  f6 {[%clk 0:00:06]} 45. Nc6 {[%clk 0:00:12]}  e6 {[%clk 0:00:06]} 46. Ne7 {[%clk 0:00:10]}  exd5 {[%clk 0:00:05]} 47. Nxd5 {[%clk 0:00:10]}  Kh6 {[%clk 0:00:05]} 48. g4 {[%clk 0:00:09]}  hxg4 {[%clk 0:00:05]} 49. hxg4 {[%clk 0:00:10]}  g5 {[%clk 0:00:06]} 50. f5 {[%clk 0:00:10]}  Kg7 {[%clk 0:00:04]} 51. Kf3 {[%clk 0:00:10]}  Rd7 {[%clk 0:00:04]} 52. Ke4 {[%clk 0:00:10]}  Rf7 {[%clk 0:00:05]} 53. Rc5 {[%clk 0:00:09]}  Kf8 {[%clk 0:00:05]} 54. Rc8+ {[%clk 0:00:09]}  Kg7 {[%clk 0:00:06]} 55. Rc7 {[%clk 0:00:10]}  Rxc7 {[%clk 0:00:06]} 56. Nxc7 {[%clk 0:00:10]}  Kf7 {[%clk 0:00:07]} 57. Ne6 {[%clk 0:00:10]}  Ke7 {[%clk 0:00:07]} 58. Kd5 {[%clk 0:00:10]}  Kd7 {[%clk 0:00:08]} 59. Nc5+ {[%clk 0:00:10]}  Ke7 {[%clk 0:00:09]} 60. Kc6 {[%clk 0:00:10]}  Kf7 {[%clk 0:00:09]} 61. Kd7 {[%clk 0:00:11]}  Kg7 {[%clk 0:00:10]} 62. Ke7 {[%clk 0:00:11]}  Kh6 {[%clk 0:00:11]} 63. Kxf6 {[%clk 0:00:11]}  Kh7 {[%clk 0:00:12]} 64. Kxg5 {[%clk 0:00:11]}  Kg7 {[%clk 0:00:13]} 65. f6+ {[%clk 0:00:12]}  Kh7 {[%clk 0:00:14]} 66. Kf5 {[%clk 0:00:12]}  Kh6 {[%clk 0:00:14]} 67. g5+ {[%clk 0:00:13]}  Kh7 {[%clk 0:00:14]} 68. g6+ {[%clk 0:00:14]}  Kg8 {[%clk 0:00:15]} 69. Nd7 {[%clk 0:00:14]}  Kh8 {[%clk 0:00:15]} 70. f7 {[%clk 0:00:14]}  Kg7 {[%clk 0:00:16]} 71. f8=Q# {[%clk 0:00:14]} 1-0


[Site "https://www.chess.com"]

[Event "Titled Tuesday Blitz May 9 Late 2023"]
[White "Kalajzic, Ivan"]
[Black "Benaddi, Mouhcine"]
[WhiteFideId "14506378"]
[BlackFideId "9001050"]
[WhiteElo "2203"]
[BlackElo "2036"]
[Result "0-1"]
[Round "03"]
[TimeControl "180+2"]
[Date "2023.05.09"]
[WhiteClock "0:01:26"]
[BlackClock "0:01:56"]

1. d4 {[%clk 0:03:00]}  c6 {[%clk 0:02:59]} 2. Nc3 {[%clk 0:03:00]}  d5 {[%clk 0:02:51]} 3. Nf3 {[%clk 0:02:55]}  Nf6 {[%clk 0:02:49]} 4. Bg5 {[%clk 0:02:55]}  Ne4 {[%clk 0:02:44]} 5. Nxe4 {[%clk 0:02:52]}  dxe4 {[%clk 0:02:40]} 6. Ng1 {[%clk 0:02:52]}  h6 {[%clk 0:02:36]} 7. Bh4 {[%clk 0:02:51]}  g5 {[%clk 0:02:36]} 8. Bg3 {[%clk 0:02:51]}  Qb6 {[%clk 0:02:31]} 9. Rb1 {[%clk 0:02:42]}  Be6 {[%clk 0:02:27]} 10. a3 {[%clk 0:02:37]}  Ba2 {[%clk 0:02:24]} 11. e3 {[%clk 0:02:30]}  Bxb1 {[%clk 0:02:21]} 12. Qxb1 {[%clk 0:02:31]}  e6 {[%clk 0:02:16]} 13. c4 {[%clk 0:02:26]}  Bxa3 {[%clk 0:02:12]} 14. c5 {[%clk 0:01:58]}  Qb3 {[%clk 0:02:08]} 15. Qxe4 {[%clk 0:01:39]}  Qxb2 {[%clk 0:02:03]} 16. Be2 {[%clk 0:01:26]}  Bb4+ {[%clk 0:01:56]} 0-1


[Site "https://www.chess.com"]

[Event "Titled Tuesday Blitz May 9 Late 2023"]
[White "micke12a"]
[Black "Oliveira, Tiago Batista"]
[BlackFideId "2108291"]
[WhiteElo "2365"]
[BlackElo "1962"]
[Result "1-0"]
[Round "03"]
[TimeControl "180+2"]
[Date "2023.05.09"]
[WhiteClock "0:01:17"]
[BlackClock "0:00:00"]

1. d4 {[%clk 0:03:00]}  Nf6 {[%clk 0:02:59]} 2. Nc3 {[%clk 0:03:00]}  d5 {[%clk 0:02:57]} 3. Bf4 {[%clk 0:02:57]}  c6 {[%clk 0:02:53]} 4. e3 {[%clk 0:02:55]}  e6 {[%clk 0:02:49]} 5. g4 {[%clk 0:02:54]}  Bd6 {[%clk 0:02:35]} 6. g5 {[%clk 0:02:52]}  Bxf4 {[%clk 0:02:33]} 7. exf4 {[%clk 0:02:53]}  Nfd7 {[%clk 0:02:27]} 8. Nf3 {[%clk 0:02:53]}  c5 {[%clk 0:02:25]} 9. dxc5 {[%clk 0:02:46]}  Nxc5 {[%clk 0:02:24]} 10. Qd4 {[%clk 0:02:46]}  Qb6 {[%clk 0:01:54]} 11. Qxg7 {[%clk 0:02:27]}  Rf8 {[%clk 0:01:54]} 12. O-O-O {[%clk 0:02:21]}  Nc6 {[%clk 0:01:43]} 13. Re1 {[%clk 0:02:15]}  Ne7 {[%clk 0:01:24]} 14. Qd4 {[%clk 0:02:05]}  Nf5 {[%clk 0:01:14]} 15. Qxd5 {[%clk 0:01:57]}  Ne7 {[%clk 0:00:21]} 16. Qc4 {[%clk 0:01:50]}  Bd7 {[%clk 0:00:19]} 17. Ne5 {[%clk 0:01:44]}  Rc8 {[%clk 0:00:18]} 18. Nxd7 {[%clk 0:01:35]}  Nxd7 {[%clk 0:00:18]} 19. Qe2 {[%clk 0:01:29]}  Nc6 {[%clk 0:00:14]} 20. Bg2 {[%clk 0:01:26]}  Nd4 {[%clk 0:00:14]} 21. Qd3 {[%clk 0:01:26]}  Qc5 {[%clk 0:00:06]} 22. Kb1 {[%clk 0:01:21]}  a6 {[%clk 0:00:00]} 23. Rd1 {[%clk 0:01:17]} 1-0


[Site "https://www.chess.com"]

[Event "Titled Tuesday Blitz May 9 Late 2023"]
[White "Curtis, John"]
[Black "Hoffmann, Asa"]
[WhiteFideId "3200256"]
[BlackFideId "2001470"]
[WhiteElo "2203"]
[BlackElo "2117"]
[Result "0-1"]
[Round "03"]
[TimeControl "180+2"]
[Date "2023.05.09"]
[WhiteClock "0:01:03"]
[BlackClock "0:01:19"]

1. e4 {[%clk 0:03:00]}  d6 {[%clk 0:02:59]} 2. d4 {[%clk 0:03:00]}  Nf6 {[%clk 0:02:56]} 3. Nc3 {[%clk 0:03:01]}  c6 {[%clk 0:02:56]} 4. f4 {[%clk 0:03:00]}  Qa5 {[%clk 0:02:55]} 5. Bd3 {[%clk 0:02:59]}  e5 {[%clk 0:02:54]} 6. Nf3 {[%clk 0:02:52]}  exd4 {[%clk 0:02:54]} 7. Nxd4 {[%clk 0:02:52]}  Qb6 {[%clk 0:02:53]} 8. Nb3 {[%clk 0:02:52]}  a5 {[%clk 0:02:51]} 9. a4 {[%clk 0:02:46]}  Na6 {[%clk 0:02:50]} 10. Qe2 {[%clk 0:02:45]}  Nb4 {[%clk 0:02:45]} 11. Be3 {[%clk 0:02:45]}  Nxd3+ {[%clk 0:02:43]} 12. Qxd3 {[%clk 0:02:45]}  Qc7 {[%clk 0:02:42]} 13. h3 {[%clk 0:02:44]}  b6 {[%clk 0:02:41]} 14. g4 {[%clk 0:02:39]}  Be7 {[%clk 0:02:40]} 15. Qd4 {[%clk 0:02:38]}  Rb8 {[%clk 0:02:36]} 16. g5 {[%clk 0:02:25]}  Nh5 {[%clk 0:02:35]} 17. f5 {[%clk 0:02:13]}  O-O {[%clk 0:02:31]} 18. Rg1 {[%clk 0:02:11]}  Re8 {[%clk 0:02:19]} 19. O-O-O {[%clk 0:02:10]}  Bf8 {[%clk 0:02:19]} 20. Rde1 {[%clk 0:02:00]}  d5 {[%clk 0:02:10]} 21. exd5 {[%clk 0:01:59]}  Bxf5 {[%clk 0:02:06]} 22. Qh4 {[%clk 0:01:50]}  Bg6 {[%clk 0:02:04]} 23. Bd2 {[%clk 0:01:36]}  cxd5 {[%clk 0:02:00]} 24. Nd4 {[%clk 0:01:36]}  Bc5 {[%clk 0:01:53]} 25. Ncb5 {[%clk 0:01:36]}  Rxe1+ {[%clk 0:01:49]} 26. Rxe1 {[%clk 0:01:35]}  Qg3 {[%clk 0:01:47]} 27. Qxg3 {[%clk 0:01:35]}  Nxg3 {[%clk 0:01:47]} 28. Nc6 {[%clk 0:01:31]}  Rc8 {[%clk 0:01:38]} 29. Nba7 {[%clk 0:01:31]}  Ra8 {[%clk 0:01:30]} 30. Bf4 {[%clk 0:01:27]}  Ne4 {[%clk 0:01:28]} 31. c3 {[%clk 0:01:17]}  Bf8 {[%clk 0:01:24]} 32. Nb5 {[%clk 0:01:16]}  Nc5 {[%clk 0:01:23]} 33. Ne7+ {[%clk 0:01:09]}  Bxe7 {[%clk 0:01:19]} 34. Rxe7 {[%clk 0:01:03]}  Nd3+ {[%clk 0:01:19]} 0-1


[Site "https://www.chess.com"]

[Event "Titled Tuesday Blitz May 9 Late 2023"]
[White "dorpato"]
[Black "Dragomirescu, Calin"]
[BlackFideId "1200895"]
[WhiteElo "2018"]
[BlackElo "2010"]
[Result "0-1"]
[Round "03"]
[TimeControl "180+2"]
[Date "2023.05.09"]
[WhiteClock "0:00:16"]
[BlackClock "0:02:19"]

1. e4 {[%clk 0:02:59]}  g6 {[%clk 0:02:59]} 2. d4 {[%clk 0:02:47]}  Bg7 {[%clk 0:03:00]} 3. Nf3 {[%clk 0:02:46]}  d6 {[%clk 0:03:00]} 4. Nc3 {[%clk 0:02:46]}  a6 {[%clk 0:03:00]} 5. Bc4 {[%clk 0:02:47]}  b5 {[%clk 0:03:01]} 6. Bd5 {[%clk 0:02:41]}  c6 {[%clk 0:03:00]} 7. Bb3 {[%clk 0:02:41]}  Nd7 {[%clk 0:02:57]} 8. a3 {[%clk 0:02:40]}  Bb7 {[%clk 0:02:57]} 9. O-O {[%clk 0:02:38]}  c5 {[%clk 0:02:58]} 10. dxc5 {[%clk 0:02:36]}  Nxc5 {[%clk 0:02:58]} 11. Bd5 {[%clk 0:02:36]}  Nf6 {[%clk 0:02:56]} 12. Bxb7 {[%clk 0:02:34]}  Nxb7 {[%clk 0:02:57]} 13. Be3 {[%clk 0:02:32]}  O-O {[%clk 0:02:57]} 14. Re1 {[%clk 0:02:31]}  Rc8 {[%clk 0:02:57]} 15. Qd3 {[%clk 0:02:29]}  Nc5 {[%clk 0:02:57]} 16. Bxc5 {[%clk 0:02:26]}  Rxc5 {[%clk 0:02:57]} 17. Rac1 {[%clk 0:02:22]}  Nd7 {[%clk 0:02:55]} 18. Nd4 {[%clk 0:01:32]}  Ne5 {[%clk 0:02:49]} 19. Qd1 {[%clk 0:01:26]}  Nc6 {[%clk 0:02:43]} 20. Nxc6 {[%clk 0:01:19]}  Rxc6 {[%clk 0:02:43]} 21. Re3 {[%clk 0:01:04]}  Bxc3 {[%clk 0:02:38]} 22. bxc3 {[%clk 0:01:01]}  Qc7 {[%clk 0:02:37]} 23. Qd2 {[%clk 0:01:00]}  Rc8 {[%clk 0:02:37]} 24. Rh3 {[%clk 0:00:30]}  Rxc3 {[%clk 0:02:34]} 25. f3 {[%clk 0:00:19]}  Rxc2 {[%clk 0:02:25]} 26. Rxc2 {[%clk 0:00:19]}  Qxc2 {[%clk 0:02:25]} 27. Qh6 {[%clk 0:00:20]}  Qc1+ {[%clk 0:02:24]} 28. Qxc1 {[%clk 0:00:20]}  Rxc1+ {[%clk 0:02:24]} 29. Kf2 {[%clk 0:00:21]}  Rc3 {[%clk 0:02:21]} 30. e5 {[%clk 0:00:17]}  dxe5 {[%clk 0:02:19]} 31. Rh4 {[%clk 0:00:16]}  Rxa3 {[%clk 0:02:19]} 0-1


[Site "https://www.chess.com"]

[Event "Titled Tuesday Blitz May 9 Late 2023"]
[White "tandercat"]
[Black "Stachanczyk, Jacek"]
[BlackFideId "1116657"]
[WhiteElo "2006"]
[BlackElo "2084"]
[Result "0-1"]
[Round "03"]
[TimeControl "180+2"]
[Date "2023.05.09"]
[WhiteClock "0:00:00"]
[BlackClock "0:00:47"]

1. d4 {[%clk 0:03:00]}  Nf6 {[%clk 0:02:46]} 2. c4 {[%clk 0:03:00]}  g6 {[%clk 0:02:45]} 3. Nc3 {[%clk 0:03:00]}  Bg7 {[%clk 0:02:44]} 4. e4 {[%clk 0:03:00]}  d6 {[%clk 0:02:45]} 5. f4 {[%clk 0:03:00]}  O-O {[%clk 0:02:40]} 6. Nf3 {[%clk 0:03:00]}  c5 {[%clk 0:02:40]} 7. d5 {[%clk 0:03:01]}  Bg4 {[%clk 0:02:39]} 8. Be2 {[%clk 0:02:51]}  b5 {[%clk 0:02:36]} 9. cxb5 {[%clk 0:02:48]}  a6 {[%clk 0:02:35]} 10. bxa6 {[%clk 0:02:48]}  Nxa6 {[%clk 0:02:35]} 11. h3 {[%clk 0:02:45]}  Bxf3 {[%clk 0:02:32]} 12. Bxf3 {[%clk 0:02:45]}  Nb4 {[%clk 0:02:26]} 13. a3 {[%clk 0:02:37]}  c4 {[%clk 0:02:19]} 14. O-O {[%clk 0:02:24]}  Qb6+ {[%clk 0:02:17]} 15. Kh1 {[%clk 0:02:20]}  Nd3 {[%clk 0:02:15]} 16. Qc2 {[%clk 0:02:14]}  Rfc8 {[%clk 0:02:05]} 17. e5 {[%clk 0:01:55]}  Nd7 {[%clk 0:02:00]} 18. exd6 {[%clk 0:01:45]}  exd6 {[%clk 0:01:59]} 19. Ne4 {[%clk 0:01:32]}  Rab8 {[%clk 0:01:42]} 20. Rb1 {[%clk 0:00:55]}  h6 {[%clk 0:01:13]} 21. f5 {[%clk 0:00:47]}  N7e5 {[%clk 0:01:09]} 22. fxg6 {[%clk 0:00:46]}  fxg6 {[%clk 0:01:09]} 23. Bg4 {[%clk 0:00:41]}  Rf8 {[%clk 0:01:06]} 24. Be6+ {[%clk 0:00:39]}  Kh7 {[%clk 0:01:05]} 25. Bd2 {[%clk 0:00:17]}  Qd4 {[%clk 0:01:03]} 26. Nxd6 {[%clk 0:00:13]}  Nf2+ {[%clk 0:00:58]} 27. Rxf2 {[%clk 0:00:09]}  Rxf2 {[%clk 0:00:55]} 28. Rd1 {[%clk 0:00:05]}  Rxb2 {[%clk 0:00:49]} 29. Qc1 {[%clk 0:00:01]}  Rbxd2 {[%clk 0:00:47]} 30. Rxd2 {[%clk 0:00:00]}  Rxd2 {[%clk 0:00:47]} 0-1


[Site "https://www.chess.com"]

[Event "Titled Tuesday Blitz May 9 Late 2023"]
[White "Chirivi C, Jenny Astrid"]
[Black "James, Stuart"]
[WhiteFideId "4403061"]
[BlackFideId "7400489"]
[WhiteElo "2019"]
[BlackElo "1950"]
[Result "1-0"]
[Round "03"]
[TimeControl "180+2"]
[Date "2023.05.09"]
[WhiteClock "0:00:24"]
[BlackClock "0:00:14"]

1. d4 {[%clk 0:03:00]}  Nf6 {[%clk 0:02:58]} 2. c4 {[%clk 0:03:00]}  e6 {[%clk 0:02:59]} 3. Nc3 {[%clk 0:02:59]}  Bb4 {[%clk 0:02:58]} 4. Qc2 {[%clk 0:02:59]}  Nc6 {[%clk 0:02:57]} 5. Nf3 {[%clk 0:02:56]}  d6 {[%clk 0:02:55]} 6. Bg5 {[%clk 0:02:54]}  h6 {[%clk 0:02:52]} 7. Bh4 {[%clk 0:02:54]}  e5 {[%clk 0:02:38]} 8. e3 {[%clk 0:02:45]}  O-O {[%clk 0:02:35]} 9. d5 {[%clk 0:02:42]}  Nb8 {[%clk 0:02:28]} 10. Be2 {[%clk 0:02:39]}  Nbd7 {[%clk 0:02:14]} 11. O-O {[%clk 0:02:36]}  a5 {[%clk 0:02:13]} 12. a3 {[%clk 0:02:21]}  Bxc3 {[%clk 0:02:12]} 13. Qxc3 {[%clk 0:02:21]}  Qe8 {[%clk 0:01:57]} 14. b4 {[%clk 0:02:18]}  axb4 {[%clk 0:01:54]} 15. axb4 {[%clk 0:02:17]}  Rxa1 {[%clk 0:01:54]} 16. Rxa1 {[%clk 0:02:18]}  b5 {[%clk 0:01:54]} 17. Bxf6 {[%clk 0:02:14]}  Nxf6 {[%clk 0:01:53]} 18. Nd2 {[%clk 0:02:03]}  bxc4 {[%clk 0:01:48]} 19. Qxc4 {[%clk 0:02:02]}  Qe7 {[%clk 0:01:29]} 20. e4 {[%clk 0:02:02]}  Bg4 {[%clk 0:01:22]} 21. Bxg4 {[%clk 0:02:00]}  Nxg4 {[%clk 0:01:21]} 22. h3 {[%clk 0:02:00]}  Nf6 {[%clk 0:01:06]} 23. Ra7 {[%clk 0:01:58]}  Rc8 {[%clk 0:01:04]} 24. Qc6 {[%clk 0:01:52]}  Qe8 {[%clk 0:00:59]} 25. Qxe8+ {[%clk 0:01:46]}  Nxe8 {[%clk 0:00:59]} 26. b5 {[%clk 0:01:12]}  Rb8 {[%clk 0:00:59]} 27. Ra5 {[%clk 0:01:12]}  Nf6 {[%clk 0:00:54]} 28. f3 {[%clk 0:01:12]}  Kf8 {[%clk 0:00:52]} 29. Nc4 {[%clk 0:01:08]}  Ke7 {[%clk 0:00:52]} 30. Ra7 {[%clk 0:01:07]}  Nd7 {[%clk 0:00:50]} 31. Rxc7 {[%clk 0:01:05]}  Rxb5 {[%clk 0:00:50]} 32. Kh2 {[%clk 0:01:02]}  f5 {[%clk 0:00:48]} 33. Rc6 {[%clk 0:00:57]}  fxe4 {[%clk 0:00:48]} 34. fxe4 {[%clk 0:00:57]}  Nf6 {[%clk 0:00:47]} 35. Nxd6 {[%clk 0:00:55]}  Rb2 {[%clk 0:00:46]} 36. Nf5+ {[%clk 0:00:51]}  Kf8 {[%clk 0:00:43]} 37. Rc8+ {[%clk 0:00:50]}  Ne8 {[%clk 0:00:44]} 38. Nxg7 {[%clk 0:00:45]}  Kxg7 {[%clk 0:00:40]} 39. Rxe8 {[%clk 0:00:45]}  Kf6 {[%clk 0:00:39]} 40. Re6+ {[%clk 0:00:45]}  Kf7 {[%clk 0:00:38]} 41. Rxe5 {[%clk 0:00:45]}  Re2 {[%clk 0:00:35]} 42. Re6 {[%clk 0:00:41]}  h5 {[%clk 0:00:35]} 43. h4 {[%clk 0:00:42]}  Re3 {[%clk 0:00:33]} 44. g3 {[%clk 0:00:40]}  Re2+ {[%clk 0:00:32]} 45. Kh3 {[%clk 0:00:40]}  Re3 {[%clk 0:00:28]} 46. Kg2 {[%clk 0:00:39]}  Re2+ {[%clk 0:00:27]} 47. Kf3 {[%clk 0:00:39]}  Re1 {[%clk 0:00:27]} 48. Kf4 {[%clk 0:00:39]}  Rf1+ {[%clk 0:00:26]} 49. Kg5 {[%clk 0:00:38]}  Rg1 {[%clk 0:00:26]} 50. Kxh5 {[%clk 0:00:39]}  Rxg3 {[%clk 0:00:26]} 51. e5 {[%clk 0:00:33]}  Rd3 {[%clk 0:00:24]} 52. Rd6 {[%clk 0:00:32]}  Re3 {[%clk 0:00:24]} 53. Rd7+ {[%clk 0:00:32]}  Ke8 {[%clk 0:00:23]} 54. e6 {[%clk 0:00:32]}  Rg3 {[%clk 0:00:19]} 55. d6 {[%clk 0:00:27]}  Re3 {[%clk 0:00:19]} 56. Re7+ {[%clk 0:00:27]}  Kd8 {[%clk 0:00:19]} 57. Kg5 {[%clk 0:00:27]}  Rd3 {[%clk 0:00:18]} 58. Rd7+ {[%clk 0:00:27]}  Ke8 {[%clk 0:00:18]} 59. h5 {[%clk 0:00:26]}  Re3 {[%clk 0:00:18]} 60. Re7+ {[%clk 0:00:26]}  Kd8 {[%clk 0:00:17]} 61. h6 {[%clk 0:00:26]}  Rd3 {[%clk 0:00:18]} 62. Rd7+ {[%clk 0:00:26]}  Ke8 {[%clk 0:00:18]} 63. h7 {[%clk 0:00:26]}  Rh3 {[%clk 0:00:19]} 64. Ra7 {[%clk 0:00:25]}  Rg3+ {[%clk 0:00:14]} 65. Kf4 {[%clk 0:00:24]} 1-0


[Site "https://www.chess.com"]